[Event "Titled Tuesday Blitz October 25 Late 2022"]
[White "Papp, Petra"]
[Black "Fajdetic, Hrvoje"]
[WhiteFideId "739049"]
[BlackFideId "14501945"]
[WhiteElo "2259"]
[BlackElo "2172"]
[Result "1-0"]
[Round "06"]
[TimeControl "180+1"]
[Date "2022.10.26"]
[WhiteClock "0:00:28"]
[BlackClock "0:00:06"]

1. d4 {[%clk 0:03:00]}  d6 {[%clk 0:03:00]} 2. e4 {[%clk 0:02:52]}  Nd7 {[%clk 0:02:59]} 3. Nc3 {[%clk 0:02:51]}  e5 {[%clk 0:02:59]} 4. Nf3 {[%clk 0:02:51]}  c6 {[%clk 0:02:58]} 5. a4 {[%clk 0:02:46]}  Be7 {[%clk 0:02:51]} 6. Bc4 {[%clk 0:02:45]}  Ngf6 {[%clk 0:02:36]} 7. O-O {[%clk 0:02:42]}  Qc7 {[%clk 0:02:28]} 8. Ba2 {[%clk 0:02:41]}  Nf8 {[%clk 0:02:22]} 9. Re1 {[%clk 0:02:32]}  Bg4 {[%clk 0:02:19]} 10. Be3 {[%clk 0:02:30]}  Ng6 {[%clk 0:02:09]} 11. h3 {[%clk 0:02:27]}  Bxf3 {[%clk 0:02:06]} 12. Qxf3 {[%clk 0:02:26]}  O-O {[%clk 0:02:02]} 13. Rad1 {[%clk 0:02:24]}  Rfe8 {[%clk 0:01:50]} 14. g3 {[%clk 0:02:23]}  a6 {[%clk 0:01:30]} 15. h4 {[%clk 0:02:17]}  Nf8 {[%clk 0:01:23]} 16. g4 {[%clk 0:02:06]}  Ne6 {[%clk 0:01:15]} 17. g5 {[%clk 0:01:52]}  Nd7 {[%clk 0:01:12]} 18. d5 {[%clk 0:01:47]}  cxd5 {[%clk 0:00:59]} 19. Bxd5 {[%clk 0:01:38]}  Ndf8 {[%clk 0:00:50]} 20. Qg4 {[%clk 0:01:29]}  Rad8 {[%clk 0:00:39]} 21. h5 {[%clk 0:01:26]}  Qc8 {[%clk 0:00:38]} 22. Bb6 {[%clk 0:01:21]}  Nxg5 {[%clk 0:00:36]} 23. Qg3 {[%clk 0:01:12]}  Rd7 {[%clk 0:00:13]} 24. h6 {[%clk 0:01:07]}  Ng6 {[%clk 0:00:07]} 25. hxg7 {[%clk 0:01:00]}  Kxg7 {[%clk 0:00:08]} 26. Be3 {[%clk 0:00:57]}  h6 {[%clk 0:00:07]} 27. Bb3 {[%clk 0:00:54]}  Rc7 {[%clk 0:00:02]} 28. Bd2 {[%clk 0:00:48]}  Rxc3 {[%clk 0:00:01]} 29. Bxc3 {[%clk 0:00:46]}  h5 {[%clk 0:00:01]} 30. Bd2 {[%clk 0:00:33]}  h4 {[%clk 0:00:02]} 31. Qg2 {[%clk 0:00:32]}  Nf4 {[%clk 0:00:03]} 32. Bxf4 {[%clk 0:00:31]}  exf4 {[%clk 0:00:04]} 33. Rd5 {[%clk 0:00:31]}  f3 {[%clk 0:00:05]} 34. Rxg5+ {[%clk 0:00:31]}  Bxg5 {[%clk 0:00:05]} 35. Qxg5+ {[%clk 0:00:31]}  Kf8 {[%clk 0:00:05]} 36. Qxh4 {[%clk 0:00:30]}  Qe6 {[%clk 0:00:05]} 37. Bxe6 {[%clk 0:00:29]}  Rxe6 {[%clk 0:00:06]} 38. Kf1 {[%clk 0:00:29]}  Rg6 {[%clk 0:00:07]} 39. Qf4 {[%clk 0:00:28]}  Rh6 {[%clk 0:00:06]} 40. Qxh6+ {[%clk 0:00:28]} 1-0


[Site "https://www.chess.com"]

[Event "Titled Tuesday Blitz October 25 Late 2022"]
[White "Pinheiro, Iung Alicio de O."]
[Black "Aguilar, Juan"]
[WhiteFideId "2104350"]
[BlackFideId "3800091"]
[WhiteElo "2283"]
[BlackElo "2431"]
[Result "1-0"]
[Round "06"]
[TimeControl "180+1"]
[Date "2022.10.26"]
[WhiteClock "0:00:15"]
[BlackClock "0:00:02"]

1. c4 {[%clk 0:03:00]}  e5 {[%clk 0:02:59]} 2. g3 {[%clk 0:03:00]}  c6 {[%clk 0:02:55]} 3. d4 {[%clk 0:02:59]}  exd4 {[%clk 0:02:55]} 4. Qxd4 {[%clk 0:02:58]}  d5 {[%clk 0:02:52]} 5. Nf3 {[%clk 0:02:58]}  Nf6 {[%clk 0:02:48]} 6. Bg2 {[%clk 0:02:58]}  Be6 {[%clk 0:02:47]} 7. Ng5 {[%clk 0:02:47]}  Bb4+ {[%clk 0:02:21]} 8. Nd2 {[%clk 0:02:33]}  O-O {[%clk 0:01:53]} 9. O-O {[%clk 0:02:19]}  Qb6 {[%clk 0:01:19]} 10. Qd3 {[%clk 0:01:50]}  Nbd7 {[%clk 0:01:11]} 11. b3 {[%clk 0:01:29]}  Ne5 {[%clk 0:01:01]} 12. Qc2 {[%clk 0:01:29]}  h6 {[%clk 0:00:51]} 13. Nxe6 {[%clk 0:01:24]}  fxe6 {[%clk 0:00:50]} 14. Bb2 {[%clk 0:01:12]}  d4 {[%clk 0:00:45]} 15. Ne4 {[%clk 0:01:04]}  Rad8 {[%clk 0:00:40]} 16. Nxf6+ {[%clk 0:01:00]}  Rxf6 {[%clk 0:00:37]} 17. Qe4 {[%clk 0:00:59]}  Nf7 {[%clk 0:00:30]} 18. e3 {[%clk 0:00:55]}  Bc3 {[%clk 0:00:24]} 19. Bxc3 {[%clk 0:00:47]}  dxc3 {[%clk 0:00:25]} 20. Rad1 {[%clk 0:00:46]}  Rxd1 {[%clk 0:00:21]} 21. Rxd1 {[%clk 0:00:47]}  Qa5 {[%clk 0:00:18]} 22. Qc2 {[%clk 0:00:43]}  e5 {[%clk 0:00:12]} 23. Rd3 {[%clk 0:00:37]}  b5 {[%clk 0:00:09]} 24. cxb5 {[%clk 0:00:35]}  cxb5 {[%clk 0:00:10]} 25. Rxc3 {[%clk 0:00:35]}  b4 {[%clk 0:00:04]} 26. Rc8+ {[%clk 0:00:35]}  Nd8 {[%clk 0:00:04]} 27. Qd3 {[%clk 0:00:29]}  Rf8 {[%clk 0:00:04]} 28. Qd5+ {[%clk 0:00:28]}  Qxd5 {[%clk 0:00:04]} 29. Bxd5+ {[%clk 0:00:29]}  Kh7 {[%clk 0:00:05]} 30. Rb8 {[%clk 0:00:27]}  a6 {[%clk 0:00:04]} 31. Ra8 {[%clk 0:00:27]}  g6 {[%clk 0:00:03]} 32. Rxa6 {[%clk 0:00:26]}  Kg7 {[%clk 0:00:03]} 33. Rb6 {[%clk 0:00:25]}  Nf7 {[%clk 0:00:01]} 34. h4 {[%clk 0:00:21]}  g5 {[%clk 0:00:01]} 35. h5 {[%clk 0:00:18]}  g4 {[%clk 0:00:01]} 36. Rg6+ {[%clk 0:00:18]}  Kh7 {[%clk 0:00:01]} 37. Rxg4 {[%clk 0:00:15]}  Ng5 {[%clk 0:00:01]} 38. f4 {[%clk 0:00:15]}  exf4 {[%clk 0:00:02]} 39. gxf4 {[%clk 0:00:15]} 1-0


[Site "https://www.chess.com"]

[Event "Titled Tuesday Blitz October 25 Late 2022"]
[White "Radovic, Luka"]
[Black "Sokolovsky, Yahli"]
[WhiteFideId "911569"]
[BlackFideId "2820242"]
[WhiteElo "2257"]
[BlackElo "2316"]
[Result "0-1"]
[Round "06"]
[TimeControl "180+1"]
[Date "2022.10.26"]
[WhiteClock "0:00:23"]
[BlackClock "0:00:04"]

1. Nf3 {[%clk 0:03:00]}  g6 {[%clk 0:02:52]} 2. c4 {[%clk 0:03:01]}  Bg7 {[%clk 0:02:51]} 3. g3 {[%clk 0:03:02]}  e5 {[%clk 0:02:50]} 4. Nc3 {[%clk 0:03:02]}  d6 {[%clk 0:02:48]} 5. Bg2 {[%clk 0:03:02]}  f5 {[%clk 0:02:48]} 6. d3 {[%clk 0:03:01]}  Nf6 {[%clk 0:02:48]} 7. O-O {[%clk 0:03:02]}  O-O {[%clk 0:02:49]} 8. b4 {[%clk 0:03:02]}  c6 {[%clk 0:02:41]} 9. a4 {[%clk 0:02:59]}  Kh8 {[%clk 0:02:37]} 10. Bb2 {[%clk 0:02:58]}  Be6 {[%clk 0:02:38]} 11. b5 {[%clk 0:02:58]}  Qc7 {[%clk 0:02:33]} 12. Nd2 {[%clk 0:02:57]}  d5 {[%clk 0:02:32]} 13. cxd5 {[%clk 0:02:57]}  cxd5 {[%clk 0:02:31]} 14. Rc1 {[%clk 0:02:57]}  Qf7 {[%clk 0:02:26]} 15. Ba3 {[%clk 0:02:54]}  Rd8 {[%clk 0:02:25]} 16. Nb3 {[%clk 0:02:46]}  d4 {[%clk 0:02:19]} 17. Nb1 {[%clk 0:02:36]}  Bxb3 {[%clk 0:02:18]} 18. Qd2 {[%clk 0:02:26]}  Bd5 {[%clk 0:02:19]} 19. e4 {[%clk 0:02:17]}  dxe3 {[%clk 0:02:18]} 20. fxe3 {[%clk 0:02:18]}  Nbd7 {[%clk 0:02:10]} 21. Rc7 {[%clk 0:02:16]}  Bxg2 {[%clk 0:01:58]} 22. Qxg2 {[%clk 0:02:15]}  Qd5 {[%clk 0:01:59]} 23. Qxd5 {[%clk 0:02:11]}  Nxd5 {[%clk 0:02:00]} 24. Rxb7 {[%clk 0:02:11]}  Nxe3 {[%clk 0:02:00]} 25. Rc1 {[%clk 0:02:10]}  Nd5 {[%clk 0:01:50]} 26. Nc3 {[%clk 0:02:05]}  Bh6 {[%clk 0:01:45]} 27. Nxd5 {[%clk 0:01:53]}  Bxc1 {[%clk 0:01:43]} 28. Be7 {[%clk 0:01:54]}  Nc5 {[%clk 0:01:12]} 29. Bf6+ {[%clk 0:01:42]}  Kg8 {[%clk 0:01:12]} 30. Rg7+ {[%clk 0:01:25]}  Kf8 {[%clk 0:01:12]} 31. Ne7 {[%clk 0:01:19]}  Rd7 {[%clk 0:00:18]} 32. Rxh7 {[%clk 0:01:03]}  Re8 {[%clk 0:00:18]} 33. Nxg6+ {[%clk 0:00:42]}  Kg8 {[%clk 0:00:19]} 34. Rh8+ {[%clk 0:00:39]}  Kf7 {[%clk 0:00:19]} 35. Nxe5+ {[%clk 0:00:39]}  Rxe5 {[%clk 0:00:20]} 36. Bxe5 {[%clk 0:00:38]}  Nxa4 {[%clk 0:00:09]} 37. d4 {[%clk 0:00:34]}  Ke6 {[%clk 0:00:06]} 38. h4 {[%clk 0:00:28]}  Be3+ {[%clk 0:00:06]} 39. Kg2 {[%clk 0:00:27]}  Bxd4 {[%clk 0:00:05]} 40. Re8+ {[%clk 0:00:23]}  Kf7 {[%clk 0:00:04]} 0-1


[Site "https://www.chess.com"]

[Event "Titled Tuesday Blitz October 25 Late 2022"]
[White "Romero Ruscalleda, Josep"]
[Black "Djordjevic, Dejan N"]
[WhiteFideId "2231859"]
[BlackFideId "913316"]
[WhiteElo "2335"]
[BlackElo "2262"]
[Result "0-1"]
[Round "06"]
[TimeControl "180+1"]
[Date "2022.10.26"]
[WhiteClock "0:00:34"]
[BlackClock "0:00:03"]

1. e4 {[%clk 0:03:00]}  c5 {[%clk 0:02:57]} 2. c3 {[%clk 0:03:00]}  d5 {[%clk 0:02:56]} 3. exd5 {[%clk 0:03:00]}  Qxd5 {[%clk 0:02:56]} 4. d4 {[%clk 0:03:00]}  Nc6 {[%clk 0:02:55]} 5. Nf3 {[%clk 0:03:00]}  e6 {[%clk 0:02:55]} 6. Be3 {[%clk 0:02:59]}  cxd4 {[%clk 0:02:54]} 7. cxd4 {[%clk 0:02:59]}  Nf6 {[%clk 0:02:54]} 8. Nc3 {[%clk 0:03:00]}  Qd8 {[%clk 0:02:52]} 9. Bd3 {[%clk 0:02:59]}  Be7 {[%clk 0:02:52]} 10. O-O {[%clk 0:02:59]}  O-O {[%clk 0:02:52]} 11. Rc1 {[%clk 0:02:59]}  Nb4 {[%clk 0:02:51]} 12. Bb1 {[%clk 0:02:59]}  Nbd5 {[%clk 0:02:51]} 13. Qe2 {[%clk 0:02:58]}  a6 {[%clk 0:02:50]} 14. Rfd1 {[%clk 0:02:55]}  b5 {[%clk 0:02:50]} 15. Ne5 {[%clk 0:02:52]}  Bb7 {[%clk 0:02:49]} 16. Bg5 {[%clk 0:02:45]}  Rc8 {[%clk 0:02:43]} 17. Ne4 {[%clk 0:02:30]}  Rxc1 {[%clk 0:02:16]} 18. Rxc1 {[%clk 0:02:29]}  Nxe4 {[%clk 0:02:13]} 19. Qxe4 {[%clk 0:02:29]}  g6 {[%clk 0:02:08]} 20. Be3 {[%clk 0:02:09]}  Bf6 {[%clk 0:01:40]} 21. Ng4 {[%clk 0:02:01]}  Bg7 {[%clk 0:01:39]} 22. Bh6 {[%clk 0:01:50]}  Bxh6 {[%clk 0:01:27]} 23. Nxh6+ {[%clk 0:01:50]}  Kg7 {[%clk 0:01:27]} 24. Ng4 {[%clk 0:01:42]}  Qg5 {[%clk 0:01:14]} 25. Rd1 {[%clk 0:01:34]}  Rc8 {[%clk 0:01:11]} 26. Qe5+ {[%clk 0:01:28]}  Qxe5 {[%clk 0:01:04]} 27. dxe5 {[%clk 0:01:28]}  h5 {[%clk 0:01:00]} 28. Ne3 {[%clk 0:01:21]}  Nxe3 {[%clk 0:00:59]} 29. fxe3 {[%clk 0:01:21]}  Rc5 {[%clk 0:00:58]} 30. Kf2 {[%clk 0:01:11]}  Rxe5 {[%clk 0:00:57]} 31. Rd7 {[%clk 0:01:11]}  Bd5 {[%clk 0:00:51]} 32. Ra7 {[%clk 0:01:08]}  Rg5 {[%clk 0:00:31]} 33. g3 {[%clk 0:01:07]}  Rg4 {[%clk 0:00:31]} 34. Rxa6 {[%clk 0:01:04]}  Rc4 {[%clk 0:00:22]} 35. Rb6 {[%clk 0:00:57]}  Rc1 {[%clk 0:00:15]} 36. Bd3 {[%clk 0:00:57]}  Bxa2 {[%clk 0:00:15]} 37. Rxb5 {[%clk 0:00:56]}  Rd1 {[%clk 0:00:11]} 38. Be2 {[%clk 0:00:51]}  Rd2 {[%clk 0:00:10]} 39. Ke1 {[%clk 0:00:51]}  Rxe2+ {[%clk 0:00:10]} 40. Kxe2 {[%clk 0:00:46]}  Bc4+ {[%clk 0:00:10]} 41. Kf3 {[%clk 0:00:47]}  Bxb5 {[%clk 0:00:10]} 42. Ke4 {[%clk 0:00:47]}  Kf6 {[%clk 0:00:10]} 43. Kd4 {[%clk 0:00:48]}  g5 {[%clk 0:00:10]} 44. e4 {[%clk 0:00:48]}  e5+ {[%clk 0:00:09]} 45. Kc5 {[%clk 0:00:47]}  Bd3 {[%clk 0:00:08]} 46. Kd5 {[%clk 0:00:47]}  Bc2 {[%clk 0:00:07]} 47. b4 {[%clk 0:00:47]}  Bb3+ {[%clk 0:00:07]} 48. Kd6 {[%clk 0:00:47]}  Ba4 {[%clk 0:00:07]} 49. h3 {[%clk 0:00:46]}  Bb5 {[%clk 0:00:04]} 50. Kc5 {[%clk 0:00:45]}  Bd3 {[%clk 0:00:03]} 51. Kd5 {[%clk 0:00:44]}  Be2 {[%clk 0:00:02]} 52. h4 {[%clk 0:00:42]}  gxh4 {[%clk 0:00:02]} 53. gxh4 {[%clk 0:00:42]}  Bd3 {[%clk 0:00:02]} 54. Kc5 {[%clk 0:00:37]}  Bxe4 {[%clk 0:00:02]} 55. b5 {[%clk 0:00:38]}  Kf5 {[%clk 0:00:02]} 56. b6 {[%clk 0:00:38]}  Kf4 {[%clk 0:00:02]} 57. Kd6 {[%clk 0:00:38]}  f5 {[%clk 0:00:03]} 58. Ke6 {[%clk 0:00:37]}  Bb7 {[%clk 0:00:02]} 59. Kf6 {[%clk 0:00:35]}  e4 {[%clk 0:00:02]} 60. Kg6 {[%clk 0:00:35]}  e3 {[%clk 0:00:03]} 61. Kxh5 {[%clk 0:00:36]}  e2 {[%clk 0:00:03]} 62. Kg6 {[%clk 0:00:37]}  e1=Q {[%clk 0:00:04]} 63. h5 {[%clk 0:00:37]}  Qg3+ {[%clk 0:00:04]} 64. Kh6 {[%clk 0:00:37]}  Qg5+ {[%clk 0:00:04]} 65. Kh7 {[%clk 0:00:37]}  Bd5 {[%clk 0:00:04]} 66. Kh8 {[%clk 0:00:34]}  Qg8# {[%clk 0:00:03]} 0-1


[Site "https://www.chess.com"]

[Event "Titled Tuesday Blitz October 25 Late 2022"]
[White "Rostomyan, Mikayel"]
[Black "Erenberg, Ariel"]
[WhiteFideId "13313754"]
[BlackFideId "2811634"]
[WhiteElo "2018"]
[BlackElo "2416"]
[Result "1-0"]
[Round "06"]
[TimeControl "180+1"]
[Date "2022.10.26"]
[WhiteClock "0:00:25"]
[BlackClock "0:00:42"]

1. d4 {[%clk 0:03:00]}  Nf6 {[%clk 0:03:00]} 2. Nf3 {[%clk 0:03:00]}  e6 {[%clk 0:03:00]} 3. c4 {[%clk 0:03:00]}  Bb4+ {[%clk 0:02:58]} 4. Bd2 {[%clk 0:03:00]}  c5 {[%clk 0:02:58]} 5. Bxb4 {[%clk 0:02:56]}  cxb4 {[%clk 0:02:59]} 6. g3 {[%clk 0:02:56]}  b6 {[%clk 0:02:59]} 7. a3 {[%clk 0:02:56]}  Na6 {[%clk 0:02:52]} 8. Bg2 {[%clk 0:02:53]}  Bb7 {[%clk 0:02:53]} 9. O-O {[%clk 0:02:53]}  O-O {[%clk 0:02:53]} 10. Nbd2 {[%clk 0:02:50]}  d6 {[%clk 0:02:53]} 11. Qb3 {[%clk 0:02:38]}  bxa3 {[%clk 0:02:48]} 12. Rxa3 {[%clk 0:02:37]}  Nc7 {[%clk 0:02:46]} 13. Rfa1 {[%clk 0:02:35]}  Qb8 {[%clk 0:02:45]} 14. Qd3 {[%clk 0:02:25]}  d5 {[%clk 0:02:34]} 15. c5 {[%clk 0:02:17]}  bxc5 {[%clk 0:02:27]} 16. dxc5 {[%clk 0:02:18]}  Bc6 {[%clk 0:02:19]} 17. Nd4 {[%clk 0:02:16]}  Be8 {[%clk 0:01:57]} 18. Rb3 {[%clk 0:02:13]}  Qc8 {[%clk 0:01:52]} 19. e4 {[%clk 0:02:11]}  e5 {[%clk 0:01:43]} 20. Nf5 {[%clk 0:02:09]}  Qe6 {[%clk 0:01:36]} 21. exd5 {[%clk 0:01:49]}  Ncxd5 {[%clk 0:01:34]} 22. Ra6 {[%clk 0:01:46]}  Qc8 {[%clk 0:01:13]} 23. Rxf6 {[%clk 0:01:31]}  gxf6 {[%clk 0:01:08]} 24. Bxd5 {[%clk 0:01:26]}  Qxc5 {[%clk 0:01:07]} 25. Bxa8 {[%clk 0:01:23]}  Ba4 {[%clk 0:01:07]} 26. Rc3 {[%clk 0:01:16]}  Qb6 {[%clk 0:01:07]} 27. Be4 {[%clk 0:01:06]}  Qxb2 {[%clk 0:01:07]} 28. Rc7 {[%clk 0:00:50]}  Bb5 {[%clk 0:01:00]} 29. Qe3 {[%clk 0:00:44]}  Qa1+ {[%clk 0:01:00]} 30. Kg2 {[%clk 0:00:43]}  Rd8 {[%clk 0:00:59]} 31. Nh6+ {[%clk 0:00:42]}  Kf8 {[%clk 0:00:51]} 32. Rxf7+ {[%clk 0:00:41]}  Ke8 {[%clk 0:00:52]} 33. Rxh7 {[%clk 0:00:33]}  Rxd2 {[%clk 0:00:50]} 34. Bg6+ {[%clk 0:00:29]}  Kd8 {[%clk 0:00:44]} 35. Qxd2+ {[%clk 0:00:28]}  Kc8 {[%clk 0:00:44]} 36. Qc2+ {[%clk 0:00:25]}  Kb8 {[%clk 0:00:42]} 37. Qc7+ {[%clk 0:00:25]}  Ka8 {[%clk 0:00:42]} 38. Qb7# {[%clk 0:00:25]} 1-0


[Site "https://www.chess.com"]

[Event "Titled Tuesday Blitz October 25 Late 2022"]
[White "Sailer, Mike"]
[Black "Ardila, Oscar Humberto"]
[WhiteFideId "2012901"]
[BlackFideId "4404742"]
[WhiteElo "2109"]
[BlackElo "1898"]
[Result "0-1"]
[Round "06"]
[TimeControl "180+1"]
[Date "2022.10.26"]
[WhiteClock "0:00:29"]
[BlackClock "0:01:57"]

1. d4 {[%clk 0:03:00]}  Nf6 {[%clk 0:02:59]} 2. Bf4 {[%clk 0:02:59]}  g6 {[%clk 0:03:00]} 3. Nc3 {[%clk 0:03:00]}  Bg7 {[%clk 0:03:01]} 4. e4 {[%clk 0:03:00]}  d6 {[%clk 0:03:01]} 5. Qd2 {[%clk 0:03:01]}  h5 {[%clk 0:03:01]} 6. O-O-O {[%clk 0:03:00]}  Nbd7 {[%clk 0:03:01]} 7. Nf3 {[%clk 0:02:57]}  Nb6 {[%clk 0:03:00]} 8. e5 {[%clk 0:02:45]}  Nfd5 {[%clk 0:03:00]} 9. Nxd5 {[%clk 0:02:42]}  Nxd5 {[%clk 0:02:59]} 10. Bg5 {[%clk 0:02:41]}  O-O {[%clk 0:02:56]} 11. Bc4 {[%clk 0:02:32]}  Nb6 {[%clk 0:02:54]} 12. Bb3 {[%clk 0:02:33]}  dxe5 {[%clk 0:02:49]} 13. dxe5 {[%clk 0:02:21]}  Qxd2+ {[%clk 0:02:49]} 14. Rxd2 {[%clk 0:02:21]}  Re8 {[%clk 0:02:47]} 15. Rhd1 {[%clk 0:02:13]}  Bg4 {[%clk 0:02:46]} 16. Bf4 {[%clk 0:02:10]}  Bxf3 {[%clk 0:02:45]} 17. gxf3 {[%clk 0:02:10]}  e6 {[%clk 0:02:44]} 18. a4 {[%clk 0:01:57]}  a5 {[%clk 0:02:43]} 19. Bg3 {[%clk 0:01:36]}  Bh6 {[%clk 0:02:42]} 20. f4 {[%clk 0:01:36]}  Bf8 {[%clk 0:02:36]} 21. h4 {[%clk 0:01:32]}  Bb4 {[%clk 0:02:36]} 22. c3 {[%clk 0:01:30]}  Bc5 {[%clk 0:02:36]} 23. Kc2 {[%clk 0:01:22]}  c6 {[%clk 0:02:35]} 24. f3 {[%clk 0:01:14]}  Nd5 {[%clk 0:02:35]} 25. Bxd5 {[%clk 0:01:13]}  cxd5 {[%clk 0:02:35]} 26. Bf2 {[%clk 0:01:10]}  Be7 {[%clk 0:02:33]} 27. Kb3 {[%clk 0:00:52]}  Rec8 {[%clk 0:02:32]} 28. Rc2 {[%clk 0:00:50]}  Rc4 {[%clk 0:02:32]} 29. Rd4 {[%clk 0:00:50]}  Rac8 {[%clk 0:02:31]} 30. Rxc4 {[%clk 0:00:50]}  Rxc4 {[%clk 0:02:30]} 31. Bd4 {[%clk 0:00:47]}  Bxh4 {[%clk 0:02:28]} 32. Ka2 {[%clk 0:00:47]}  Rxa4+ {[%clk 0:02:26]} 33. Kb1 {[%clk 0:00:47]}  Rc4 {[%clk 0:02:25]} 34. b3 {[%clk 0:00:45]}  Rc6 {[%clk 0:02:25]} 35. Kb2 {[%clk 0:00:45]}  Be7 {[%clk 0:02:22]} 36. Rc1 {[%clk 0:00:44]}  Bc5 {[%clk 0:02:22]} 37. Ra1 {[%clk 0:00:43]}  Bxd4 {[%clk 0:02:20]} 38. cxd4 {[%clk 0:00:43]}  b6 {[%clk 0:02:20]} 39. Rh1 {[%clk 0:00:39]}  Kf8 {[%clk 0:02:20]} 40. Rg1 {[%clk 0:00:38]}  Ke7 {[%clk 0:02:20]} 41. Rf1 {[%clk 0:00:39]}  Rc8 {[%clk 0:02:15]} 42. Ra1 {[%clk 0:00:38]}  Kd7 {[%clk 0:02:15]} 43. b4 {[%clk 0:00:39]}  axb4 {[%clk 0:01:59]} 44. Ra7+ {[%clk 0:00:35]}  Rc7 {[%clk 0:02:00]} 45. Ra8 {[%clk 0:00:36]}  Kc6 {[%clk 0:01:58]} 46. Kb3 {[%clk 0:00:35]}  Kb5 {[%clk 0:01:59]} 47. Rf8 {[%clk 0:00:31]}  Rc3+ {[%clk 0:01:58]} 48. Kb2 {[%clk 0:00:32]}  Rxf3 {[%clk 0:01:59]} 49. Rxf7 {[%clk 0:00:31]}  Kc4 {[%clk 0:01:58]} 50. Rf6 {[%clk 0:00:30]}  Rf2+ {[%clk 0:01:58]} 51. Kc1 {[%clk 0:00:30]}  Kc3 {[%clk 0:01:57]} 52. Kd1 {[%clk 0:00:28]}  b3 {[%clk 0:01:56]} 53. Rxe6 {[%clk 0:00:29]}  b2 {[%clk 0:01:56]} 54. Rc6+ {[%clk 0:00:29]}  Kd3 {[%clk 0:01:57]} 0-1


[Site "https://www.chess.com"]

[Event "Titled Tuesday Blitz October 25 Late 2022"]
[White "Sanchez, Robert"]
[Black "Baglan, Esat"]
[WhiteFideId "2034360"]
[BlackFideId "6309216"]
[WhiteElo "2417"]
[BlackElo "2231"]
[Result "1/2-1/2"]
[Round "06"]
[TimeControl "180+1"]
[Date "2022.10.26"]
[WhiteClock "0:00:19"]
[BlackClock "0:00:16"]

1. e4 {[%clk 0:03:00]}  c5 {[%clk 0:03:00]} 2. Nf3 {[%clk 0:03:01]}  d6 {[%clk 0:02:57]} 3. d4 {[%clk 0:03:01]}  cxd4 {[%clk 0:02:58]} 4. Nxd4 {[%clk 0:03:02]}  Nf6 {[%clk 0:02:59]} 5. Nc3 {[%clk 0:03:02]}  Nc6 {[%clk 0:02:59]} 6. f3 {[%clk 0:03:02]}  g6 {[%clk 0:02:57]} 7. Be3 {[%clk 0:03:02]}  Bg7 {[%clk 0:02:57]} 8. Bc4 {[%clk 0:03:03]}  O-O {[%clk 0:02:56]} 9. Qd2 {[%clk 0:03:03]}  Bd7 {[%clk 0:02:56]} 10. O-O-O {[%clk 0:03:03]}  Rc8 {[%clk 0:02:56]} 11. Bb3 {[%clk 0:03:04]}  Nxd4 {[%clk 0:02:56]} 12. Bxd4 {[%clk 0:03:04]}  b5 {[%clk 0:02:57]} 13. h4 {[%clk 0:03:01]}  a5 {[%clk 0:02:57]} 14. h5 {[%clk 0:02:32]}  a4 {[%clk 0:02:53]} 15. Bxf6 {[%clk 0:02:32]}  exf6 {[%clk 0:02:32]} 16. Bd5 {[%clk 0:02:27]}  b4 {[%clk 0:02:32]} 17. Ne2 {[%clk 0:02:25]}  f5 {[%clk 0:02:21]} 18. hxg6 {[%clk 0:02:19]}  hxg6 {[%clk 0:02:19]} 19. Kb1 {[%clk 0:02:06]}  Qf6 {[%clk 0:02:18]} 20. Nd4 {[%clk 0:01:53]}  a3 {[%clk 0:02:11]} 21. g3 {[%clk 0:01:38]}  Rc5 {[%clk 0:01:52]} 22. Qh2 {[%clk 0:01:36]}  Rfc8 {[%clk 0:01:52]} 23. Qh7+ {[%clk 0:01:31]}  Kf8 {[%clk 0:01:52]} 24. g4 {[%clk 0:01:20]}  Rxc2 {[%clk 0:01:37]} 25. g5 {[%clk 0:00:42]}  Rxb2+ {[%clk 0:01:27]} 26. Ka1 {[%clk 0:00:39]}  Qxd4 {[%clk 0:00:35]} 27. Rxd4 {[%clk 0:00:35]}  Rbc2 {[%clk 0:00:35]} 28. Kb1 {[%clk 0:00:19]}  Rb2+ {[%clk 0:00:20]} 29. Ka1 {[%clk 0:00:19]}  Rbc2 {[%clk 0:00:15]} 30. Kb1 {[%clk 0:00:19]}  Rb2+ {[%clk 0:00:16]} 31. Ka1 {[%clk 0:00:19]} 1/2-1/2


[Site "https://www.chess.com"]

[Event "Titled Tuesday Blitz October 25 Late 2022"]
[White "Schuster, Karsten"]
[Black "Makaraci, Tunahan"]
[WhiteFideId "4611071"]
[BlackFideId "6356559"]
[WhiteElo "2294"]
[BlackElo "2175"]
[Result "1-0"]
[Round "06"]
[TimeControl "180+1"]
[Date "2022.10.26"]
[WhiteClock "0:01:52"]
[BlackClock "0:02:38"]

1. d4 {[%clk 0:02:59]}  d5 {[%clk 0:02:56]} 2. c4 {[%clk 0:02:59]}  e6 {[%clk 0:02:57]} 3. cxd5 {[%clk 0:02:59]}  c5 {[%clk 0:02:57]} 4. dxe6 {[%clk 0:02:54]}  Bxe6 {[%clk 0:02:56]} 5. Nf3 {[%clk 0:02:54]}  Nc6 {[%clk 0:02:54]} 6. e3 {[%clk 0:02:52]}  cxd4 {[%clk 0:02:54]} 7. Nxd4 {[%clk 0:02:51]}  Bb4+ {[%clk 0:02:54]} 8. Nc3 {[%clk 0:02:50]}  Nxd4 {[%clk 0:02:53]} 9. Qxd4 {[%clk 0:02:49]}  Qxd4 {[%clk 0:02:54]} 10. exd4 {[%clk 0:02:49]}  O-O-O {[%clk 0:02:55]} 11. Be3 {[%clk 0:02:48]}  Nf6 {[%clk 0:02:56]} 12. a3 {[%clk 0:02:40]}  Ba5 {[%clk 0:02:52]} 13. b4 {[%clk 0:02:39]}  Bb6 {[%clk 0:02:53]} 14. O-O-O {[%clk 0:02:37]}  Ng4 {[%clk 0:02:52]} 15. h3 {[%clk 0:02:31]}  Nxe3 {[%clk 0:02:48]} 16. fxe3 {[%clk 0:02:32]}  Rhe8 {[%clk 0:02:49]} 17. Bb5 {[%clk 0:02:29]}  Bd7 {[%clk 0:02:48]} 18. Bxd7+ {[%clk 0:02:29]}  Rxd7 {[%clk 0:02:49]} 19. Rhe1 {[%clk 0:02:27]}  Rde7 {[%clk 0:02:50]} 20. Nd5 {[%clk 0:02:27]}  Re6 {[%clk 0:02:48]} 21. Nxb6+ {[%clk 0:02:26]}  axb6 {[%clk 0:02:48]} 22. Rd3 {[%clk 0:02:26]}  Rc6+ {[%clk 0:02:44]} 23. Kd2 {[%clk 0:02:26]}  Kd7 {[%clk 0:02:45]} 24. Rc3 {[%clk 0:02:21]}  Rg6 {[%clk 0:02:46]} 25. Re2 {[%clk 0:02:19]}  h5 {[%clk 0:02:46]} 26. e4 {[%clk 0:02:14]}  Rd6 {[%clk 0:02:45]} 27. Rd3 {[%clk 0:02:08]}  Rc8 {[%clk 0:02:42]} 28. e5 {[%clk 0:01:59]}  Rd5 {[%clk 0:02:42]} 29. Rf2 {[%clk 0:01:59]}  Ke7 {[%clk 0:02:42]} 30. Ke3 {[%clk 0:01:59]}  Rc1 {[%clk 0:02:41]} 31. Ke4 {[%clk 0:01:58]}  Rd8 {[%clk 0:02:39]} 32. d5 {[%clk 0:01:57]}  g6 {[%clk 0:02:38]} 33. d6+ {[%clk 0:01:52]} 1-0


[Site "https://www.chess.com"]